fUST/lending_fUST_20260123
["ID","MTS","AMOUNT","RATE_DAILY","PERIOD"]
[403117323,1769174363693,-200.0,0.00044,120]
[403117324,1769174363748,-1055.0,0.00044,120]
[403117325,1769174363794,-1038.33890266,0.00044069,120]
[403117326,1769174363841,-500.0,0.0004411,120]
[403117327,1769174363888,-500.0,0.00044247,120]
[403117328,1769174363935,-500.0,0.00044384,120]
[403117329,1769174363983,-200.0,0.000444,120]
[403117330,1769174364032,-500.0,0.00044521,120]
[403117331,1769174364080,-472.49705118,0.00044657,85]
[403117332,1769174364129,-500.0,0.00044658,120]
[403117333,1769174364181,-500.0,0.00044795,120]
[403117334,1769174364231,-300.0,0.000448,120]
[403117335,1769174364279,-2000.0,0.000449,120]
[403117336,1769174364327,-61376.90724434,0.000449,120]
[403117337,1769174364376,-2729.92,0.000449,120]
[403117338,1769174364423,-317.07072232,0.00044932,120]
[403117339,1769174364470,-506.17125796,0.00045,120]
[403117340,1769174364517,-2362.41836854,0.00045,120]
[403117341,1769174364566,-200.0,0.00045,120]
[403117342,1769174364614,-1000.0,0.00045,120]
[403117343,1769174364659,-10000.0,0.00045,100]
[403117344,1769174364701,-2000.0,0.00045,120]
[403117345,1769174364747,-10000.0,0.00045,30]
[403117346,1769174364791,-1000.0,0.00045,120]
[403117347,1769174364836,-30755.55273378,0.00045,120]
[403117348,1769174389179,-151.0,0.00031377,31]
[403117349,1769174389228,-151.0,0.00031377,31]
[403117350,1769174389273,-151.0,0.00031377,31]
[403117351,1769174389318,-151.0,0.00031444,31]
[403117352,1769174389360,-151.0,0.00031444,31]
[403117353,1769174389400,-169.490178,0.00031444,31]
[403117354,1769174389442,-207.699031,0.00033444,31]
[403117355,1769174389479,-151.0,0.00033444,31]
[403117356,1769174389542,-603.3135026,0.00041372,30]
[403117357,1769174389581,-305.4129056,0.00041372,30]
[403117358,1769174389618,-71633.57617901,0.00045,120]
[403117359,1769174389654,-200.0,0.00045,120]
[403117360,1769174389689,-20000.0,0.00045,120]
[403117361,1769174389725,-2498.89435382,0.00045,120]
[403117362,1769174389758,-233.66882445,0.00045,120]
[403117363,1769174389794,-8247.87920648,0.00045,45]
[403117364,1769174389832,-1000.0,0.00045,120]
[403117365,1769174389869,-470.06197027,0.00045,120]
[403117366,1769174389907,-908.57,0.00045,120]
[403117367,1769174389944,-31746.49818707,0.00045,120]
[403117368,1769174389980,-1987.3937646,0.00045,120]
[403117369,1769174390016,-5062.464251,0.00045,120]
[403117370,1769174390053,-300.99,0.00045,30]
[403117371,1769174390089,-204.54,0.00045,30]
[403117372,1769174390124,-632.33,0.00045,30]
[403117373,1769174390160,-5526.17,0.00045,30]
[403117374,1769174390196,-161.27,0.00045205,30]
[403117375,1769174390234,-4077.14408531,0.000454,120]
[403117376,1769174390272,-1764.92331037,0.000454,120]
[403117377,1769174390309,-4284110.1996,0.00045444,30]
[403117378,1769174390347,-2000.0,0.000459,120]
[403117379,1769174390383,-200.0,0.00046,120]
[403117380,1769174390420,-2000.0,0.00046,120]
[403117381,1769174390457,-10000.0,0.00046,120]
[403117382,1769174390496,-133390.19255705,0.00046,30]
[403117383,1769174390534,-456.19745627,0.00046,120]
[403117384,1769174390574,-305.24832027,0.00046,30]
[403117385,1769174390615,-9366.48991683,0.00046,120]
[403117386,1769174390656,-1168.59,0.00046,30]
[403117387,1769174390695,-5000.0,0.000465,120]
[403117388,1769174390732,-4000.0,0.000465,120]
[403117389,1769174390768,-500.0,0.00046575,120]
[403117390,1769174390803,-1090.00769513,0.000468,120]
[403117391,1769174390839,-392.79675178,0.000468,120]
[403117392,1769174390876,-2000.0,0.000469,120]
[403117393,1769174390926,-1000.0,0.00047,120]
[403117394,1769174390967,-6000.0,0.00047,120]
[403117395,1769174391009,-2000.0,0.00047,120]
[403117396,1769174391051,-300.0,0.00047,120]
[403117397,1769174391093,-632.33,0.0004725,30]
[403117398,1769174391323,-5526.17,0.0004725,30]
[403117399,1769174391366,-5000.0,0.000475,120]
[403117400,1769174391408,-2136.36990613,0.000478,120]
[403117401,1769174391452,-150.0,0.00047841,30]
[403117402,1769174391493,-2000.0,0.000479,120]
[403117403,1769174391534,-400.0,0.000479,120]
[403117404,1769174391575,-200000.0,0.000479,120]
[403117405,1769174391616,-1000.0,0.00047999,120]
[403117406,1769174391658,-200.0,0.00048,120]
[403117407,1769174391699,-30223.46062772,0.00048,120]
[403117408,1769174391740,-2000.0,0.00048,120]
[403117409,1769174391780,-100000.0,0.00048,120]
[403117410,1769174391819,-5000.0,0.00048,62]
[403117411,1769174391855,-3035.50711806,0.00048,120]
[403117412,1769174391894,-5526.6,0.00048,120]
[403117413,1769174391930,-299.028168,0.00048,120]
[403117414,1769174391970,-1011672.6933994,0.00048398,120]
[403117415,1769174392011,-5000.0,0.000485,120]
[403117416,1769174392050,-190000.0,0.00048571,120]
[403117417,1769174392089,-20000.0,0.00048571,120]
[403117418,1769174392129,-20000.0,0.00048571,120]
[403117419,1769174392170,-20000.0,0.00048571,120]
[403117420,1769174392214,-60000.0,0.000488,120]
[403117421,1769174392259,-50000.0,0.000488,120]
[403117422,1769174392299,-807128.69398222,0.000489,120]
[403117423,1769174392336,-2000.0,0.000489,120]
[403117424,1769174392374,-200000.0,0.000489,120]
[403117425,1769174392410,-7315.66422977,0.000489,120]
[403117426,1769174392447,-10000.0,0.00049,120]
[403117427,1769174392484,-7333.0,0.00049,120]
[403117428,1769174392522,-3100.0,0.00049,120]
[403117429,1769174392560,-200.0,0.00049,120]
[403117430,1769174392598,-10000.0,0.00049,120]
[403117431,1769174392635,-172021.40813863,0.00049,120]
[403117432,1769174392671,-3419.52016913,0.00049,120]
[403117433,1769174392707,-60000.0,0.000492,120]
[403117434,1769174392744,-60000.0,0.000492,120]
[403117435,1769174392781,-5000.0,0.000492,120]
[403117436,1769174392817,-5000.0,0.000492,120]
[403117437,1769174392854,-5000.0,0.000492,120]
[403117438,1769174392891,-5000.0,0.000492,120]
[403117439,1769174392929,-2729.92,0.0004929,120]
[403117440,1769174392967,-2210.75,0.00049315,120]
[403117441,1769174393006,-2210.75,0.00049315,120]
[403117442,1769174393047,-2210.75,0.00049315,120]
[403117443,1769174393091,-2210.75,0.00049315,120]
[403117444,1769174393132,-2210.75,0.00049315,120]
[403117445,1769174393178,-2210.75,0.00049315,120]
[403117446,1769174393222,-2210.75,0.00049315,120]
[403117447,1769174393264,-2210.75,0.00049315,120]
[403117448,1769174393306,-2210.75,0.00049315,120]
[403117449,1769174393346,-2210.75,0.00049315,120]
[403117450,1769174393384,-2210.75,0.00049315,120]
[403117451,1769174393421,-2210.75,0.00049315,120]
[403117452,1769174393460,-2210.75,0.00049315,120]
[403117453,1769174393504,-2210.75,0.00049315,120]
[403117454,1769174393546,-2210.75,0.00049315,120]
[403117455,1769174393587,-2210.75,0.00049315,120]
[403117456,1769174393628,-2210.75,0.00049315,120]
[403117457,1769174393668,-2210.75,0.00049315,120]
[403117458,1769174393708,-2210.75,0.00049315,120]
[403117459,1769174393748,-2210.75,0.00049315,120]
[403117460,1769174393788,-2210.75,0.00049315,120]
[403117461,1769174393827,-2210.75,0.00049315,120]
[403117462,1769174393867,-2210.75,0.00049315,120]
[403117463,1769174393907,-2210.86459498,0.00049315,120]
[403117464,1769174393946,-2000.0,0.00049315,30]
[403117465,1769174393989,-151.0,0.00049315,30]
[403117466,1769174394032,-2074.0,0.00049315,30]
[403117467,1769174394076,-156.587,0.00049315,30]
[403117468,1769174394122,-162.380719,0.00049315,30]
[403117469,1769174394166,-168.3888056,0.00049315,30]
[403117470,1769174394210,-174.61919141,0.00049315,30]
[403117471,1769174394256,-181.08010149,0.00049315,30]
[403117472,1769174394299,-187.78006525,0.00049315,30]
[403117473,1769174394341,-1520.242035,0.00049315,30]
[403117474,1769174394382,-194.72792766,0.00049315,30]
[403117475,1769174394423,-201.93286099,0.00049315,30]
[403117476,1769174394466,-209.40437684,0.00049315,30]
[403117477,1769174394509,-217.15233878,0.00049315,30]
[403117478,1769174394552,-225.18697532,0.00049315,30]
[403117479,1769174394594,-233.51889341,0.00049315,30]
[403117480,1769174394636,-242.15909246,0.00049315,30]
[403117481,1769174394679,-251.11897888,0.00049315,30]
[403117482,1769174394719,-260.4103811,0.00049315,30]
[403117483,1769174394759,-237.50655745,0.00049315,30]
[403117484,1769174394797,-500.0,0.00049315,120]
[403117485,1769174394835,-100000.0,0.0004935,120]
[403117486,1769174394874,-734214.47807877,0.0004943,120]
[403117487,1769174394914,-373999.83323964,0.00049444,30]
[403117488,1769174398209,-469.2414069,0.00034032,120]
[403117489,1769174398276,-497.58484758,0.00036032,120]
[403117490,1769174398322,-525.92828827,0.00038032,120]
[403117491,1769174398366,-554.27172895,0.00040032,120]
[403117492,1769174398407,-582.61516964,0.00042032,120]
[403117493,1769174398448,-610.95861032,0.00044032,120]
[403117494,1769174398488,-639.30205101,0.00046032,120]
[403117495,1769174398526,-496.47127165,0.00049315,30]
[403117496,1769174398562,-3910110.36636036,0.00049444,30]
[403117497,1769174398599,-5000.0,0.000495,120]
[403117498,1769174398637,-3941.2448201,0.000495,30]
[403117499,1769174398675,-60000.0,0.000496,120]
[403117500,1769174398713,-60000.0,0.000496,120]
[403117501,1769174398751,-5526.17,0.00049613,30]
[403117502,1769174398787,-632.33,0.00049613,30]
[403117503,1769174398826,-429.06470391,0.000498,120]
[403117504,1769174398863,-30000.0,0.0004988,120]
[403117505,1769174398901,-4000.0,0.000499,120]
[403117506,1769174398938,-2000.0,0.000499,120]
[403117507,1769174398977,-27273.30621175,0.000499,50]
[403117508,1769174399018,-1000.0,0.00049999,120]
[403117509,1769174399057,-556.05601083,0.0005,120]
[403117510,1769174399097,-1000.0,0.0005,120]
[403117511,1769174399137,-200.0,0.0005,120]
[403117512,1769174399180,-1000.0,0.0005,120]
[403117513,1769174399222,-2498.26530328,0.0005,120]
[403117514,1769174399260,-1532774.71011587,0.0005,120]
[403117515,1769174399297,-2000.0,0.0005,120]
[403117516,1769174399334,-500.0,0.0005,30]
[403117517,1769174399370,-39999.999999,0.0005,120]
[403117518,1769174399408,-60531.4519288,0.0005,60]
[403117519,1769174399447,-200.0,0.0005,60]
[403117520,1769174399487,-494.98645618,0.0005,30]
[403117521,1769174399525,-332.1879724,0.0005,120]
[403117522,1769174399562,-10000.0,0.0005,30]
[403117523,1769174399600,-221965.03741154,0.0005,120]
[403117524,1769174399638,-41125.20392375,0.0005,120]
[403117525,1769174399675,-74747.11999683,0.0005,120]
[403117526,1769174399713,-9098.13343592,0.0005,120]
[403117527,1769174399751,-8200.54839803,0.0005,120]
[403117528,1769174399788,-15088.62421697,0.0005,60]
[403117529,1769174399827,-100000.0,0.0005,120]
[403117530,1769174399865,-9067.81,0.0005,120]
[403117531,1769174399904,-1250.0,0.0005,120]
[403117532,1769174399944,-1000.0,0.0005,60]
[403117533,1769174399985,-1500.0,0.0005,120]
[403117534,1769174400032,-29309.07292646,0.0005,120]
[403117535,1769174400079,-10000.0,0.0005,120]
[403117536,1769174400126,-157.3445441,0.0005,120]
[403117537,1769174400173,-4015.41474961,0.0005,120]
[403117538,1769174400223,-8676.86321108,0.0005,120]
[403117539,1769174400272,-8556.98086597,0.0005,120]
[403117540,1769174400320,-621449.03691748,0.0005,120]
[403117541,1769174400364,-17895.75165846,0.0005,90]
[403117542,1769174400407,-162.0,0.0005,120]
[403117543,1769174400448,-716.30489327,0.0005,120]
[403117544,1769174400491,-819.6223371,0.0005,120]
[403117545,1769174400531,-200.0,0.0005,120]
[403117546,1769174400572,-554.69624424,0.0005,120]
[403117547,1769174400613,-164.0,0.0005,120]
[403117548,1769174400659,-40400.0,0.00050001,120]
[403117549,1769174400702,-5000.0,0.000502,120]
[403117550,1769174400743,-5000.0,0.000502,120]
[403117551,1769174400781,-5000.0,0.000502,120]
[403117552,1769174400824,-5000.0,0.000502,120]
[403117553,1769174400866,-5000.0,0.000502,120]
[403117554,1769174400905,-5000.0,0.000502,120]
[403117555,1769174400944,-5000.0,0.000502,120]
[403117556,1769174400986,-5000.0,0.000502,120]
[403117557,1769174401030,-5000.0,0.000502,120]
[403117558,1769174401072,-5000.0,0.000502,120]
[403117559,1769174401113,-5000.0,0.000502,120]
[403117560,1769174401155,-5000.0,0.000502,120]
[403117561,1769174401196,-5000.0,0.000502,120]
[403117563,1769174401238,-5000.0,0.000502,120]
[403117565,1769174401279,-5000.0,0.000502,120]
[403117566,1769174401320,-5000.0,0.000502,120]
[403117567,1769174401360,-5000.0,0.000502,120]
[403117568,1769174401401,-5000.0,0.000502,120]
[403117569,1769174401442,-5000.0,0.000502,120]
[403117570,1769174401483,-5000.0,0.000502,120]
[403117571,1769174401525,-5000.0,0.000502,120]
[403117572,1769174401568,-5000.0,0.000502,120]
[403117573,1769174401608,-1000.0,0.000502,30]
[403117574,1769174401792,-1000.0,0.000503,60]
[403117575,1769174401835,-1000.0,0.000503,60]
[403117576,1769174401878,-162.0,0.000504,120]
[403117577,1769174401919,-4361.0,0.00050411,120]
[403117578,1769174401960,-5000.0,0.000505,120]
[403117579,1769174402003,-1000.0,0.000505,30]
[403117580,1769174402046,-1000.0,0.000506,60]
[403117581,1769174402089,-1000.0,0.000508,30]
[403117582,1769174402135,-162.0,0.000508,120]
[403117583,1769174402185,-2000.0,0.000509,120]
[403117584,1769174402233,-50000.0,0.00051,120]
[403117585,1769174402282,-1000.0,0.00051,120]
[403117586,1769174402329,-1258.0,0.00051,120]
[403117587,1769174402377,-2000.0,0.00051,120]
[403117588,1769174402423,-10094.55496511,0.00051,120]
[403117589,1769174402470,-3000.0,0.00051,85]
[403117590,1769174402517,-200.0,0.00051,120]
[403117591,1769174402564,-3000.0,0.0005101,85]
[403117592,1769174402610,-3000.0,0.0005102,85]
[403117593,1769174402656,-3000.0,0.0005103,85]
[403117594,1769174402703,-3000.0,0.0005104,85]
[403117595,1769174402746,-3000.0,0.0005105,85]
[403117596,1769174402785,-3000.0,0.0005106,85]
[403117597,1769174402826,-5692.932833,0.0005107,85]
[403117598,1769174402866,-1000.0,0.000511,30]
[403117599,1769174402906,-212.0,0.0005119,30]
[403117600,1769174402948,-4790.61938359,0.000512,120]
[403117601,1769174402990,-162.0,0.000512,120]
[403117602,1769174403039,-102117.87286777,0.00051282,120]
[403117603,1769174403088,-1000.0,0.000514,30]
[403117604,1769174403138,-10113.86157503,0.000515,120]
[403117605,1769174403194,-5000.0,0.000515,120]
[403117606,1769174403247,-162.0,0.000516,120]
[403117607,1769174403298,-1000.0,0.000517,30]
[403117608,1769174403362,667.64549169,0.00048032,120]
[403117609,1769174403473,300.33890718,0.00038,120]
[403117610,1769174403554,150.0,0.00044466,30]
[403117611,1769174403613,150.0,0.00048508,30]
[403117612,1769174407506,213.0,0.0005,120]
[403117616,1769174413167,662.926865,0.00031377,31]
[403117617,1769174413493,662.926865,0.00031444,31]
[403117618,1769174413819,662.926865,0.00033444,31]
[403117619,1769174414801,662.926865,0.00031377,31]
[403117620,1769174415439,662.926865,0.00031444,31]
[403117621,1769174415817,662.926865,0.00033444,31]
[403117622,1769174416801,662.926865,0.00031377,31]
[403117623,1769174417200,662.926865,0.00031444,31]
[403117624,1769174417612,662.926865,0.00033444,31]
[403117625,1769174418541,662.926865,0.00031377,31]
[403117626,1769174418858,662.926865,0.00031444,31]
[403117627,1769174419231,151.0,0.00031377,31]
[403117628,1769174419477,662.926865,0.00033444,31]
[403117629,1769174419571,151.0,0.00031444,31]
[403117630,1769174419625,500.0,0.00027397,120]
[403117632,1769174419873,151.0,0.00033444,31]
[403117634,1769174420012,500.0,0.00030137,120]
[403117635,1769174420335,500.0,0.00032877,120]
[403117636,1769174420475,151.0,0.00034477,31]
[403117637,1769174420663,500.0,0.00035616,120]
[403117638,1769174420772,151.0,0.00034477,31]
[403117645,1769174430262,-500.0,0.00038356,120]
[403117646,1769174430316,-500.0,0.00041096,120]
[403117647,1769174430368,-500.0,0.00043836,120]
[403117648,1769174430424,-958.96805333,0.00046575,120]
[403117649,1769174430478,-100000.0,0.00051819,120]
[403117650,1769174430528,-209985.10049713,0.00051888,120]
[403117651,1769174430580,-2000.0,0.000519,120]
[403117652,1769174430633,-100524.18,0.000519,120]
[403117653,1769174430686,-200.0,0.00051906,120]
[403117654,1769174430736,-200.0,0.00051906,120]
[403117655,1769174430788,-200.0,0.00051906,120]
[403117656,1769174430836,-200.0,0.00051906,120]
[403117657,1769174430884,-200.0,0.00051906,120]
[403117658,1769174430932,-200.0,0.00051906,120]
[403117659,1769174430979,-1000.0,0.00051999,120]
[403117660,1769174431024,-1000.0,0.00052,120]
[403117661,1769174431072,-200.0,0.00052,120]
[403117662,1769174431118,-1000.0,0.00052,120]
[403117663,1769174431167,-2000.0,0.00052,120]
[403117664,1769174431214,-2199.99999999,0.00052,120]
[403117665,1769174431261,-100000.0,0.00052,120]
[403117666,1769174431308,-20000.0,0.00052,120]
[403117667,1769174431354,-422272.87644815,0.00052,120]
[403117668,1769174431400,-162.0,0.00052,120]
[403117669,1769174431445,-6536.70721573,0.00052,120]
[403117670,1769174431491,-50520.697,0.00052,120]
[403117671,1769174431537,-200.0,0.00052,120]
[403117672,1769174431582,-1830.45,0.00052054,120]
[403117673,1769174431628,-1830.45,0.00052054,120]
[403117674,1769174431673,-1830.45,0.00052054,120]
[403117675,1769174431718,-1830.45,0.00052054,120]
[403117676,1769174431765,-1830.45,0.00052054,120]
[403117677,1769174431811,-1830.45,0.00052054,120]
[403117678,1769174431858,-1830.45,0.00052054,120]
[403117679,1769174431905,-1830.45,0.00052054,120]
[403117680,1769174431952,-1830.45,0.00052054,120]
[403117681,1769174432282,-1830.45,0.00052054,120]
[403117682,1769174432331,-1830.45,0.00052054,120]
[403117683,1769174432378,-1830.45,0.00052054,120]
[403117684,1769174432425,-1830.45,0.00052054,120]
[403117685,1769174432476,-1830.45,0.00052054,120]
[403117686,1769174432538,-1830.45,0.00052054,120]
[403117687,1769174432592,-1830.45,0.00052054,120]
[403117688,1769174432644,-1830.45,0.00052054,120]
[403117689,1769174432694,-1830.45,0.00052054,120]
[403117690,1769174432744,-1830.45,0.00052054,120]
[403117691,1769174432792,-1830.45,0.00052054,120]
[403117692,1769174432839,-1830.45,0.00052054,120]
[403117693,1769174432889,-1830.45,0.00052054,120]
[403117694,1769174432938,-1830.45,0.00052054,120]
[403117695,1769174432989,-1830.51641707,0.00052054,120]
[403117696,1769174433041,-162.0,0.000524,120]
[403117697,1769174433091,-5000.0,0.000525,120]
[403117698,1769174433141,-3150.43480778,0.000525,120]
[403117699,1769174433194,-5175.26010972,0.000526,120]
[403117700,1769174433248,-290.87135902,0.000528,120]
[403117701,1769174433297,-162.0,0.000528,120]
[403117702,1769174433345,-17620.39046531,0.0005288,120]
[403117703,1769174433394,-2000.0,0.000529,120]
[403117704,1769174433442,-3070.55025182,0.00053,120]
[403117705,1769174433489,-1000.0,0.00053,120]
[403117706,1769174433537,-1000.0,0.00053,120]
[403117707,1769174433584,-2000.0,0.00053,120]
[403117708,1769174433631,-286.96576105,0.00053,120]
[403117709,1769174433676,-62145.77998933,0.00053,120]
[403117710,1769174433723,-200.0,0.00053,120]
[403117711,1769174433770,-46921.96449251,0.0005316,120]
[403117712,1769174433818,-162.0,0.000532,120]
[403117713,1769174433865,-417.1913559,0.00053495,120]
[403117714,1769174433914,-5000.0,0.000535,120]
[403117715,1769174433965,-162.0,0.000536,120]
[403117716,1769174434014,-22938.05114729,0.000538,120]
[403117717,1769174434061,-20000.0,0.0005388,120]
[403117718,1769174434110,-2000.0,0.000539,120]
[403117719,1769174434161,-1000.0,0.00053999,120]
[403117720,1769174434211,-688.6994412,0.00054,120]
[403117721,1769174434261,-1000.0,0.00054,120]
[403117722,1769174434309,-200.0,0.00054,120]
[403117723,1769174434358,-23896.79385272,0.00054,120]
[403117724,1769174434406,-162.0,0.00054,120]
[403117725,1769174434454,-162.68804096,0.00054,120]
[403117726,1769174434502,-200.0,0.00054,120]
[403117727,1769174434552,-18252.1299041,0.0005425,120]
[403117728,1769174434601,-19903.6362685,0.0005439,120]
[403117729,1769174434650,-162.0,0.000544,120]
[403117730,1769174434697,-1000.0,0.00054443,120]
[403117731,1769174434744,-1000.0,0.000545,120]
[403117740,1769174478826,4902.16671719,0.00011293,2]
[403117741,1769174478850,5097.83328281,0.00011293,2]
[403117745,1769174496029,5000.0,0.000154,120]
[403117746,1769174496364,4902.17671719,0.00011293,2]
[403117747,1769174496389,3877.81699481,0.00011293,2]
[403117749,1769174522624,-5000.0,0.00011995,2]
[403117752,1769174529664,-5638.15076039,0.00011995,2]
[403117755,1769174535977,-10000.01,0.00011995,2]
[403117756,1769174536091,-10000.01,0.00011995,2]
[403117757,1769174536218,-10000.01,0.00011995,2]
[403117758,1769174536702,-10000.01,0.00011995,2]
[403117763,1769174549566,-5000.0,0.00011875,2]
[403117764,1769174549609,-0.01,0.00011995,2]
[403117779,1769174561860,-1090.21382486,0.00011875,2]
[403117780,1769174564741,5000.0,0.00011995,2]
[403117781,1769174572550,2819.58235028,0.00011995,2]
[403117783,1769174574133,-2180.41764972,0.00011995,2]
[403117784,1769174580869,1546.31075238,0.00011995,2]
[403117786,1769174589235,4092.86394818,0.00011995,2]
[403117788,1769174593988,-907.13605182,0.00011995,2]
[403117789,1769174597218,5000.0,0.00011935,2]
[403117790,1769174612081,3185.73789636,0.00011995,2]
[403117791,1769174612105,1814.26210364,0.00011995,2]
[403117792,1769174619800,5000.0,0.00011995,2]
[403117794,1769174634932,3185.74789636,0.00011995,2]
[403117795,1769174634955,1814.25210364,0.00011995,2]
[403117798,1769174642632,5000.0,0.00011995,2]
[403117800,1769174657865,5000.0,0.00011995,2]
[403117802,1769174665619,1047.46962661,0.00011995,2]
[403117804,1769174673882,3952.54037339,0.00011995,2]
[403117805,1769174673904,531.78962661,0.00011995,2]
[403117806,1769174682490,5000.0,0.00011995,2]
[403117810,1769174704659,4468.22037339,0.00011995,2]
[403117815,1769174745927,2013.6370162,0.00011293,2]
[403117816,1769174757652,912.0,0.00011915,2]
[403117818,1769174775849,1402.19692199,0.00011915,2]
[403117825,1769174896688,5000.0,0.00011915,2]
[403117838,1769174918639,672.17606181,0.00011915,2]
[403117839,1769174918664,4327.82393819,0.00011915,2]
[403117840,1769174941104,5000.0,0.00011915,2]
[403117844,1769174963354,672.18606181,0.00011915,2]
[403117845,1769174963381,4327.81393819,0.00011915,2]
[403117848,1769174986546,5000.0,0.00011915,2]
[403117849,1769174995038,672.19606181,0.00011915,2]
[403117850,1769174995061,2925.6070162,0.00011915,2]
[403117851,1769174999711,-589.0,0.00011995,2]
[403117853,1769175012250,-7437.68593296,0.00012,5]
[403117854,1769175012378,-10000.01,0.00012,5]
[403117855,1769175012513,-2918.23503492,0.00012,5]
[403117856,1769175012542,-4163.53993016,0.00012,5]
[403117857,1769175015837,-5000.0,0.00012023,2]
[403117858,1769175015881,-0.01,0.00012144,2]
[403117859,1769175015968,-10000.01,0.00012144,2]
[403117882,1769175031574,-1054.42585719,0.00012144,2]
[403118021,1769175032970,5000.0,0.00011934,2]
[403118027,1769175037598,-4237.11762725,0.00012144,2]
[403118028,1769175037656,-562.11244126,0.00012144,2]
[403118029,1769175037666,-300.0,0.00012234,2]
[403118030,1769175037676,-300.0,0.00012234,2]
[403118031,1769175037685,-300.0,0.00012234,2]
[403118032,1769175037696,-300.0,0.00012234,2]
[403118033,1769175037704,-300.0,0.00012234,2]
[403118034,1769175037714,-300.0,0.00012234,2]
[403118035,1769175037723,-300.0,0.00012234,2]
[403118036,1769175037732,-300.0,0.00012234,2]
[403118037,1769175037742,-300.0,0.00012234,2]
[403118038,1769175037752,-300.0,0.00012234,2]
[403118039,1769175037762,-300.0,0.00012234,2]
[403118040,1769175037771,-300.0,0.00012234,2]
[403118041,1769175037782,-300.0,0.00012234,2]
[403118042,1769175037791,-300.0,0.00012234,2]
[403118043,1769175037801,-300.0,0.00012234,2]
[403118044,1769175037812,-600.0,0.00012234,2]
[403118045,1769175037822,-372.77,0.00012329,2]
[403118046,1769175037831,-778.20312531,0.00012329,2]
[403118047,1769175037842,-1467.74687469,0.00012329,2]
[403118048,1769175037851,-1871.63,0.00012329,2]
[403118049,1769175037860,-562.01070112,0.00012329,2]
[403118050,1769175037871,-997.67929888,0.00012329,2]
[403118051,1769175037880,-708.53991268,0.00012329,2]
[403118070,1769175039816,-591.20008732,0.00012329,2]
[403118071,1769175039826,-1083.12,0.00012329,2]
[403118072,1769175039836,-902.6,0.00012329,2]
[403118073,1769175039845,-468.48380627,0.00012464,2]
[403118074,1769175039855,-880.53439779,0.00012558,2]
[403118075,1769175039868,-500.0,0.00012558,2]
[403118076,1769175039879,-5067.30701446,0.00012558,2]
[403118077,1769175039893,-7545.24280647,0.00012558,2]
[403118078,1769175039903,-22788.16288682,0.00012871,2]
[403118079,1769175039913,-3313.18091679,0.000129,2]
[403118080,1769175039923,-170.305539,0.00012917,2]
[403118081,1769175039934,-317.58907852,0.00012957,3]
[403118082,1769175039943,-629.0,0.00013254,2]
[403118083,1769175039952,-2149.0,0.00013254,2]
[403118084,1769175039961,-1368.0,0.00013254,2]
[403118085,1769175039970,-417.0,0.00013254,2]
[403118086,1769175039979,-715.0,0.00013254,2]
[403118087,1769175039988,-201.624,0.00013254,2]
[403118088,1769175039998,-500.0,0.00013273,2]
[403118089,1769175040007,-500.0,0.00013273,2]
[403118090,1769175040016,-720.0,0.00013457,2]
[403118091,1769175040027,-424.60585338,0.00013502,2]
[403118092,1769175040037,-150.0,0.00013544,2]
[403118093,1769175040046,-150.0,0.00013544,2]